[Event "Early-Titled-Tuesday-Blitz-January-16-2024"]
[Site "Chess.com"]
[Date "2024.01.16"]
[Round "4"]
[White "RamonManon0g"]
[Black "AlexPapasimakopoulos"]
[Result "0-1"]
[WhiteElo "2399"]
[BlackElo "2646"]
[TimeControl "180+1"]
[EndTime "8:41:45 PST"]
[Termination "AlexPapasimakopoulos won by checkmate"]

1. e4 {[%clk 0:03:00.9]} 1... e6 {[%clk 0:02:58.3]} 2. d4 {[%clk 0:03:00.6]}
2... d5 {[%clk 0:02:58.8]} 3. Nd2 {[%clk 0:03:01.3]} 3... Nf6 {[%clk 0:02:58.6]}
4. e5 {[%clk 0:03:00.3]} 4... Nfd7 {[%clk 0:02:59.3]} 5. Ngf3 {[%clk 0:03:00.8]}
5... c5 {[%clk 0:02:59.2]} 6. c3 {[%clk 0:03:01]} 6... Be7 {[%clk 0:02:57.9]} 7.
Bd3 {[%clk 0:02:59.9]} 7... b5 {[%clk 0:02:58.1]} 8. Bxb5 {[%clk 0:02:54.4]}
8... Qb6 {[%clk 0:02:58.2]} 9. Bd3 {[%clk 0:02:50.1]} 9... Ba6 {[%clk
0:02:58.1]} 10. Qe2 {[%clk 0:02:48.7]} 10... cxd4 {[%clk 0:02:58.3]} 11. cxd4
{[%clk 0:02:45.8]} 11... O-O {[%clk 0:02:57.1]} 12. O-O {[%clk 0:02:43.4]} 12...
Bxd3 {[%clk 0:02:57.2]} 13. Qxd3 {[%clk 0:02:43.3]} 13... Nc6 {[%clk 0:02:58.1]}
14. Nb3 {[%clk 0:02:42.3]} 14... a5 {[%clk 0:02:57.6]} 15. Bg5 {[%clk
0:02:36.5]} 15... a4 {[%clk 0:02:52.4]} 16. Bxe7 {[%clk 0:02:36.2]} 16... Nxe7
{[%clk 0:02:53.3]} 17. Ng5 {[%clk 0:02:35.9]} 17... Ng6 {[%clk 0:02:46]} 18. Nc5
{[%clk 0:02:29.9]} 18... Nxc5 {[%clk 0:02:45.4]} 19. dxc5 {[%clk 0:02:30.8]}
19... Qxc5 {[%clk 0:02:31.1]} 20. Rac1 {[%clk 0:02:22.9]} 20... Qb4 {[%clk
0:02:30.6]} 21. Rc7 {[%clk 0:01:55]} 21... Qxb2 {[%clk 0:02:26.3]} 22. Qh3
{[%clk 0:01:21.4]} 22... h6 {[%clk 0:02:25.2]} 23. Nxe6 {[%clk 0:01:21.2]} 23...
Qxe5 {[%clk 0:02:21.9]} 24. Nxf8 {[%clk 0:01:07.2]} 24... Qxc7 {[%clk
0:02:15.9]} 25. Nxg6 {[%clk 0:01:05.2]} 25... fxg6 {[%clk 0:02:16.8]} 26. Qe6+
{[%clk 0:01:05]} 26... Qf7 {[%clk 0:02:16.6]} 27. Qc6 {[%clk 0:01:05.2]} 27...
Rd8 {[%clk 0:02:08.6]} 28. Qxa4 {[%clk 0:01:04.3]} 28... d4 {[%clk 0:02:08.8]}
29. Rd1 {[%clk 0:01:01.9]} 29... Qf6 {[%clk 0:01:55.3]} 30. Qc4+ {[%clk
0:00:57.5]} 30... Kh7 {[%clk 0:01:55.2]} 31. a4 {[%clk 0:00:56.3]} 31... d3
{[%clk 0:01:53.5]} 32. h3 {[%clk 0:00:54.3]} 32... d2 {[%clk 0:01:53.4]} 33. Qe2
{[%clk 0:00:46.3]} 33... Qc3 {[%clk 0:01:46.9]} 34. Kf1 {[%clk 0:00:39.8]} 34...
Qa5 {[%clk 0:01:43.3]} 35. Qb5 {[%clk 0:00:36.7]} 35... Qc7 {[%clk 0:01:34.5]}
36. a5 {[%clk 0:00:30.5]} 36... Qh2 {[%clk 0:01:32.5]} 37. a6 {[%clk 0:00:28]}
37... Qh1+ {[%clk 0:01:28.4]} 38. Ke2 {[%clk 0:00:28.4]} 38... Qxg2 {[%clk
0:01:28.8]} 39. Rxd2 {[%clk 0:00:28.4]} 39... Qe4+ {[%clk 0:01:26.2]} 40. Kd1
{[%clk 0:00:28.2]} 40... Qf3+ {[%clk 0:01:21.4]} 41. Ke1 {[%clk 0:00:23.1]}
41... Rc8 {[%clk 0:01:13.4]} 42. Qb2 {[%clk 0:00:12.5]} 42... Qh1+ {[%clk
0:00:46.1]} 43. Ke2 {[%clk 0:00:12.6]} 43... Re8+ {[%clk 0:00:46.7]} 44. Kd3
{[%clk 0:00:12.6]} 44... Qe4+ {[%clk 0:00:46.2]} 45. Kc3 {[%clk 0:00:12]} 45...
Rc8+ {[%clk 0:00:46.8]} 46. Kb3 {[%clk 0:00:12]} 46... Rb8+ {[%clk 0:00:47.2]}
47. Ka2 {[%clk 0:00:12.1]} 47... Rxb2+ {[%clk 0:00:45.8]} 48. Kxb2 {[%clk
0:00:13]} 48... Qb4+ {[%clk 0:00:45.5]} 49. Kc2 {[%clk 0:00:13.1]} 49... Qa4+
{[%clk 0:00:45.8]} 50. Kd3 {[%clk 0:00:12.5]} 50... Qxa6+ {[%clk 0:00:46.3]} 51.
Ke3 {[%clk 0:00:13.4]} 51... Qa3+ {[%clk 0:00:46.4]} 52. Ke2 {[%clk 0:00:13.2]}
52... Qxh3 {[%clk 0:00:46.5]} 53. Rd3 {[%clk 0:00:14.1]} 53... Qf5 {[%clk
0:00:43]} 54. Rg3 {[%clk 0:00:13.9]} 54... g5 {[%clk 0:00:43.2]} 55. Kf1 {[%clk
0:00:14.8]} 55... Qf4 {[%clk 0:00:43.1]} 56. Kg2 {[%clk 0:00:15.7]} 56... g4
{[%clk 0:00:43.2]} 57. Re3 {[%clk 0:00:15.6]} 57... h5 {[%clk 0:00:43.5]} 58.
Rg3 {[%clk 0:00:15.3]} 58... h4 {[%clk 0:00:43.1]} 59. Re3 {[%clk 0:00:15.4]}
59... h3+ {[%clk 0:00:43.3]} 60. Kg1 {[%clk 0:00:15.7]} 60... Qxe3 {[%clk
0:00:43.3]} 61. fxe3 {[%clk 0:00:15.6]} 61... g3 {[%clk 0:00:44]} 62. Kh1 {[%clk
0:00:15.6]} 62... Kg6 {[%clk 0:00:44.6]} 63. e4 {[%clk 0:00:16.5]} 63... Kf6
{[%clk 0:00:44.8]} 64. e5+ {[%clk 0:00:17.4]} 64... Kxe5 {[%clk 0:00:45.4]} 65.
Kg1 {[%clk 0:00:18]} 65... Kf4 {[%clk 0:00:46]} 66. Kh1 {[%clk 0:00:18.9]} 66...
Kf3 {[%clk 0:00:46.3]} 67. Kg1 {[%clk 0:00:19.8]} 67... g2 {[%clk 0:00:46.6]}
68. Kh2 {[%clk 0:00:20]} 68... Kf2 {[%clk 0:00:47.3]} 69. Kxh3 {[%clk
0:00:20.9]} 69... g1=Q {[%clk 0:00:47.7]} 70. Kh4 {[%clk 0:00:21.5]} 70... Qg6
{[%clk 0:00:47.9]} 71. Kh3 {[%clk 0:00:18.9]} 71... Qh5# {[%clk 0:00:48.8]} 0-1

[Event "Early-Titled-Tuesday-Blitz-January-16-2024"]
[Site "Chess.com"]
[Date "2024.01.16"]
[Round "4"]
[White "Alexei_Kornev"]
[Black "Phelathegreat"]
[Result "1/2-1/2"]
[WhiteElo "2698"]
[BlackElo "2423"]
[TimeControl "180+1"]
[EndTime "8:41:45 PST"]
[Termination "Game drawn by repetition"]

1. e4 {[%clk 0:03:00.9]} 1... e6 {[%clk 0:02:56.6]} 2. d4 {[%clk 0:03:00.7]}
2... d5 {[%clk 0:02:56.8]} 3. Nc3 {[%clk 0:03:01.1]} 3... Nf6 {[%clk 0:02:56.6]}
4. e5 {[%clk 0:03:01.2]} 4... Nfd7 {[%clk 0:02:56.8]} 5. f4 {[%clk 0:03:01.8]}
5... c5 {[%clk 0:02:57]} 6. Nf3 {[%clk 0:03:01.7]} 6... Nc6 {[%clk 0:02:57.3]}
7. Be3 {[%clk 0:03:02.3]} 7... cxd4 {[%clk 0:02:56.6]} 8. Nxd4 {[%clk
0:03:03.2]} 8... Bc5 {[%clk 0:02:56.8]} 9. a3 {[%clk 0:03:02]} 9... O-O {[%clk
0:02:55.9]} 10. Qd2 {[%clk 0:03:00.5]} 10... a6 {[%clk 0:02:54.8]} 11. O-O-O
{[%clk 0:02:54.8]} 11... Qc7 {[%clk 0:02:54.4]} 12. h4 {[%clk 0:02:49.8]} 12...
Nxd4 {[%clk 0:02:51.3]} 13. Bxd4 {[%clk 0:02:50.7]} 13... b5 {[%clk 0:02:50.8]}
14. Ne2 {[%clk 0:02:42.9]} 14... f6 {[%clk 0:02:44.1]} 15. exf6 {[%clk
0:02:39.4]} 15... Nxf6 {[%clk 0:02:42.6]} 16. Bxc5 {[%clk 0:02:26.3]} 16... Qxc5
{[%clk 0:02:41.5]} 17. Qd4 {[%clk 0:02:25.4]} 17... Qxd4 {[%clk 0:02:28.6]} 18.
Rxd4 {[%clk 0:02:23.8]} 18... Ne4 {[%clk 0:02:27.1]} 19. g3 {[%clk 0:02:21.7]}
19... Bd7 {[%clk 0:02:16.2]} 20. Bg2 {[%clk 0:02:20.3]} 20... Nc5 {[%clk
0:02:11.5]} 21. Re1 {[%clk 0:02:16.9]} 21... Rac8 {[%clk 0:02:07.3]} 22. Kd2
{[%clk 0:02:15.3]} 22... Rc7 {[%clk 0:02:04.3]} 23. Nc3 {[%clk 0:02:12.5]} 23...
Rfc8 {[%clk 0:02:02.8]} 24. Bxd5 {[%clk 0:02:03.5]} 24... exd5 {[%clk 0:02:01]}
25. Nxd5 {[%clk 0:02:04.4]} 25... Rb7 {[%clk 0:01:54.4]} 26. Ne7+ {[%clk
0:02:03.3]} 26... Kf7 {[%clk 0:01:52.5]} 27. Nxc8 {[%clk 0:02:03.8]} 27... Bxc8
{[%clk 0:01:52.2]} 28. Re5 {[%clk 0:02:00.9]} 28... Nd7 {[%clk 0:01:42.5]} 29.
Red5 {[%clk 0:01:54.7]} 29... Nb6 {[%clk 0:01:38.2]} 30. Rd8 {[%clk 0:01:51.3]}
30... Bf5 {[%clk 0:01:31.3]} 31. b3 {[%clk 0:01:42.9]} 31... Rc7 {[%clk
0:01:28.2]} 32. c3 {[%clk 0:01:40.8]} 32... Be6 {[%clk 0:01:21.4]} 33. R8d6
{[%clk 0:01:35.8]} 33... Nd7 {[%clk 0:01:18.2]} 34. b4 {[%clk 0:01:32]} 34...
Ra7 {[%clk 0:01:03.3]} 35. Rc6 {[%clk 0:01:16.7]} 35... Nf6 {[%clk 0:00:56]} 36.
Kc2 {[%clk 0:01:09.5]} 36... a5 {[%clk 0:00:50.8]} 37. Kb2 {[%clk 0:01:08.7]}
37... axb4 {[%clk 0:00:48.8]} 38. cxb4 {[%clk 0:01:09.6]} 38... Bc4 {[%clk
0:00:28.9]} 39. Rcd6 {[%clk 0:01:03.8]} 39... Be6 {[%clk 0:00:28.1]} 40. Rb6
{[%clk 0:01:00.2]} 40... Bc4 {[%clk 0:00:25.7]} 41. f5 {[%clk 0:00:58.3]} 41...
h5 {[%clk 0:00:24.3]} 42. Rbd6 {[%clk 0:00:56.9]} 42... Rc7 {[%clk 0:00:18.2]}
43. Rd8 {[%clk 0:00:53.4]} 43... Ke7 {[%clk 0:00:17.9]} 44. Rb8 {[%clk
0:00:49.9]} 44... Nd7 {[%clk 0:00:16.6]} 45. Rh8 {[%clk 0:00:47.5]} 45... Nb6
{[%clk 0:00:15.7]} 46. Rxh5 {[%clk 0:00:43.6]} 46... Na4+ {[%clk 0:00:15.6]} 47.
Kb1 {[%clk 0:00:42.3]} 47... Kf7 {[%clk 0:00:14]} 48. Rh8 {[%clk 0:00:39.7]}
48... Re7 {[%clk 0:00:13.9]} 49. Kc2 {[%clk 0:00:34.9]} 49... Re2+ {[%clk
0:00:13.7]} 50. Kc1 {[%clk 0:00:33.7]} 50... Nc3 {[%clk 0:00:13]} 51. Rhd8
{[%clk 0:00:29.3]} 51... Na2+ {[%clk 0:00:11.9]} 52. Kd1 {[%clk 0:00:29.5]}
52... Nc3+ {[%clk 0:00:12]} 53. Kc1 {[%clk 0:00:29.8]} 53... Na2+ {[%clk
0:00:12.2]} 54. Kd1 {[%clk 0:00:30.2]} 54... Nc3+ {[%clk 0:00:12.5]} 55. Kc1
{[%clk 0:00:30.1]} 1/2-1/2

[Event "Early-Titled-Tuesday-Blitz-January-16-2024"]
[Site "Chess.com"]
[Date "2024.01.16"]
[Round "4"]
[White "BursaBBSatranc"]
[Black "Grossboss19"]
[Result "1-0"]
[WhiteElo "2718"]
[BlackElo "2545"]
[TimeControl "180+1"]
[EndTime "8:41:48 PST"]
[Termination "BursaBBSatranc won on time"]

1. d4 {[%clk 0:03:00.9]} 1... Nf6 {[%clk 0:02:45.4]} 2. Bf4 {[%clk 0:03:01.1]}
2... e6 {[%clk 0:02:41.8]} 3. e3 {[%clk 0:03:01.6]} 3... d5 {[%clk 0:02:42.7]}
4. Nf3 {[%clk 0:03:01.6]} 4... Bd6 {[%clk 0:02:43.6]} 5. Nbd2 {[%clk 0:03:01.6]}
5... O-O {[%clk 0:02:43.7]} 6. Bd3 {[%clk 0:03:01.6]} 6... c5 {[%clk 0:02:43.4]}
7. dxc5 {[%clk 0:03:00.7]} 7... Bxf4 {[%clk 0:02:40.8]} 8. exf4 {[%clk
0:03:01.6]} 8... Qc7 {[%clk 0:02:41.4]} 9. g3 {[%clk 0:03:01.8]} 9... Qxc5
{[%clk 0:02:36.2]} 10. O-O {[%clk 0:03:01.8]} 10... Nc6 {[%clk 0:02:35.7]} 11.
a3 {[%clk 0:03:00.4]} 11... b6 {[%clk 0:02:33]} 12. Rc1 {[%clk 0:02:59.1]} 12...
Bb7 {[%clk 0:02:31.7]} 13. Qe2 {[%clk 0:02:59.3]} 13... Rac8 {[%clk 0:02:30.8]}
14. Nb3 {[%clk 0:02:52.2]} 14... Qe7 {[%clk 0:02:30.2]} 15. Rfe1 {[%clk
0:02:46.4]} 15... Rfe8 {[%clk 0:02:26.3]} 16. c3 {[%clk 0:02:45.9]} 16... Rcd8
{[%clk 0:02:17.4]} 17. Bb5 {[%clk 0:02:39]} 17... Qc7 {[%clk 0:02:17.2]} 18. Ne5
{[%clk 0:02:35.2]} 18... Re7 {[%clk 0:02:14.7]} 19. Nd4 {[%clk 0:02:27.2]} 19...
Nxe5 {[%clk 0:01:48]} 20. fxe5 {[%clk 0:02:27.2]} 20... Ne4 {[%clk 0:01:48.6]}
21. f3 {[%clk 0:02:27.4]} 21... Nc5 {[%clk 0:01:48.5]} 22. b4 {[%clk 0:02:03.7]}
22... Nd7 {[%clk 0:01:38.5]} 23. Bd3 {[%clk 0:02:00.2]} 23... Nb8 {[%clk
0:01:33.3]} 24. f4 {[%clk 0:01:56.2]} 24... g6 {[%clk 0:01:28.5]} 25. Nb5 {[%clk
0:01:44.6]} 25... Qd7 {[%clk 0:01:21.4]} 26. Nd6 {[%clk 0:01:44.8]} 26... Bc6
{[%clk 0:01:16.5]} 27. h4 {[%clk 0:01:40.5]} 27... Qc7 {[%clk 0:01:06.8]} 28. h5
{[%clk 0:01:32.9]} 28... Nd7 {[%clk 0:01:06.7]} 29. hxg6 {[%clk 0:01:32.2]}
29... hxg6 {[%clk 0:01:04.2]} 30. c4 {[%clk 0:01:11]} 30... Qb8 {[%clk
0:00:48.4]} 31. cxd5 {[%clk 0:01:08.3]} 31... Bxd5 {[%clk 0:00:49.1]} 32. Be4
{[%clk 0:01:08.8]} 32... Bxe4 {[%clk 0:00:43.8]} 33. Qxe4 {[%clk 0:01:09.7]}
33... Nf8 {[%clk 0:00:41.8]} 34. Rc6 {[%clk 0:00:52.5]} 34... Rc7 {[%clk
0:00:37.2]} 35. Rec1 {[%clk 0:00:50.6]} 35... Rdd7 {[%clk 0:00:37.1]} 36. Kf2
{[%clk 0:00:40.1]} 36... Rxc6 {[%clk 0:00:30.4]} 37. Qxc6 {[%clk 0:00:41]} 37...
g5 {[%clk 0:00:20.4]} 38. Qc8 {[%clk 0:00:32.7]} 38... Qxc8 {[%clk 0:00:20]} 39.
Rxc8 {[%clk 0:00:33.6]} 39... gxf4 {[%clk 0:00:19.6]} 40. gxf4 {[%clk
0:00:34.5]} 40... a5 {[%clk 0:00:12.5]} 41. b5 {[%clk 0:00:33.3]} 41... f5
{[%clk 0:00:08.3]} 42. Rc6 {[%clk 0:00:27.6]} 42... Kg7 {[%clk 0:00:06.1]} 43.
Rxb6 {[%clk 0:00:27.4]} 43... Ng6 {[%clk 0:00:06]} 44. Ke3 {[%clk 0:00:26.2]}
44... Ne7 {[%clk 0:00:03.3]} 45. Ra6 {[%clk 0:00:20.7]} 45... Nd5+ {[%clk
0:00:03.4]} 46. Kf3 {[%clk 0:00:21.4]} 46... Kf8 {[%clk 0:00:02.1]} 47. b6
{[%clk 0:00:19.9]} 47... Ke7 {[%clk 0:00:01.5]} 48. b7 {[%clk 0:00:19.8]} 1-0

[Event "Early-Titled-Tuesday-Blitz-January-16-2024"]
[Site "Chess.com"]
[Date "2024.01.16"]
[Round "4"]
[White "artooon"]
[Black "Durarbayli"]
[Result "1-0"]
[WhiteElo "2973"]
[BlackElo "2834"]
[TimeControl "180+1"]
[EndTime "8:41:50 PST"]
[Termination "artooon won on time"]

1. e4 {[%clk 0:03:00.9]} 1... e5 {[%clk 0:02:56.9]} 2. Nf3 {[%clk 0:03:00.9]}
2... Nc6 {[%clk 0:02:57.4]} 3. Bc4 {[%clk 0:03:01.1]} 3... Nf6 {[%clk 0:02:57]}
4. Ng5 {[%clk 0:03:01.2]} 4... d5 {[%clk 0:02:56.3]} 5. exd5 {[%clk 0:03:02.1]}
5... Na5 {[%clk 0:02:56.9]} 6. Bb5+ {[%clk 0:03:02.5]} 6... c6 {[%clk
0:02:57.6]} 7. dxc6 {[%clk 0:03:03.2]} 7... bxc6 {[%clk 0:02:58.5]} 8. Qf3
{[%clk 0:03:03.6]} 8... cxb5 {[%clk 0:02:56.1]} 9. Qxa8 {[%clk 0:03:03.5]} 9...
Qc7 {[%clk 0:02:56.7]} 10. Qf3 {[%clk 0:02:52.5]} 10... h6 {[%clk 0:02:37.2]}
11. Ne4 {[%clk 0:02:51.5]} 11... Nxe4 {[%clk 0:02:36.8]} 12. Qxe4 {[%clk
0:02:51.9]} 12... Bb7 {[%clk 0:02:37.4]} 13. Qe2 {[%clk 0:02:42.6]} 13... Bxg2
{[%clk 0:02:24.9]} 14. Rg1 {[%clk 0:02:42.6]} 14... Bc6 {[%clk 0:02:05.7]} 15.
d4 {[%clk 0:02:40.2]} 15... e4 {[%clk 0:01:52.5]} 16. Nc3 {[%clk 0:02:32.3]}
16... Qxh2 {[%clk 0:01:52]} 17. Qg4 {[%clk 0:02:21.7]} 17... h5 {[%clk
0:01:17.3]} 18. Qc8+ {[%clk 0:02:16.4]} 18... Ke7 {[%clk 0:01:17.7]} 19. Bg5+
{[%clk 0:02:11]} 19... f6 {[%clk 0:01:17.8]} 20. O-O-O {[%clk 0:02:05.3]} 20...
fxg5 {[%clk 0:01:13.9]} 21. d5 {[%clk 0:02:05.7]} 21... Bd7 {[%clk 0:01:09.3]}
22. Qc5+ {[%clk 0:02:00.8]} 22... Ke8 {[%clk 0:01:02.5]} 23. Qxa7 {[%clk
0:01:58]} 23... Nc4 {[%clk 0:00:59.2]} 24. d6 {[%clk 0:01:30.1]} 24... e3 {[%clk
0:00:46.7]} 25. fxe3 {[%clk 0:01:22.9]} 25... Rh6 {[%clk 0:00:29.4]} 26. Ne4
{[%clk 0:01:09.1]} 26... Qe5 {[%clk 0:00:21.6]} 27. Qa8+ {[%clk 0:01:02.8]}
27... Kf7 {[%clk 0:00:21.5]} 28. c3 {[%clk 0:00:45.9]} 28... g4 {[%clk
0:00:14.1]} 29. Rgf1+ {[%clk 0:00:40.7]} 29... Rf6 {[%clk 0:00:14.4]} 30. Nxf6
{[%clk 0:00:41.2]} 30... gxf6 {[%clk 0:00:15.3]} 31. e4 {[%clk 0:00:37]} 31...
Bxd6 {[%clk 0:00:13.6]} 32. Qh8 {[%clk 0:00:32.9]} 32... Qg5+ {[%clk 0:00:05.6]}
33. Kb1 {[%clk 0:00:31.4]} 33... Bc6 {[%clk 0:00:06.5]} 34. Qh7+ {[%clk
0:00:28.8]} 34... Qg7 {[%clk 0:00:05]} 35. Qxh5+ {[%clk 0:00:28.5]} 35... Qg6
{[%clk 0:00:05.2]} 36. Qh8 {[%clk 0:00:22.9]} 36... Qxe4+ {[%clk 0:00:05.1]} 37.
Ka1 {[%clk 0:00:23.3]} 37... Be7 {[%clk 0:00:05.8]} 38. Rde1 {[%clk 0:00:21.9]}
38... Qg6 {[%clk 0:00:05.9]} 39. Qc8 {[%clk 0:00:20.7]} 39... Be4 {[%clk
0:00:03.3]} 40. Qd7 {[%clk 0:00:18.7]} 40... Ne5 {[%clk 0:00:02.3]} 41. Qxb5
{[%clk 0:00:17.2]} 41... Bd3 {[%clk 0:00:02.5]} 42. Qxe5 {[%clk 0:00:17.9]}
42... Bxf1 {[%clk 0:00:02.9]} 43. Rxf1 {[%clk 0:00:18.8]} 43... Qd3 {[%clk
0:00:01.5]} 44. Qh5+ {[%clk 0:00:18.2]} 44... Kf8 {[%clk 0:00:01.3]} 45. Re1
{[%clk 0:00:17.8]} 1-0

[Event "Early-Titled-Tuesday-Blitz-January-16-2024"]
[Site "Chess.com"]
[Date "2024.01.16"]
[Round "4"]
[White "starworld123"]
[Black "Lady_Nika"]
[Result "1-0"]
[WhiteElo "2833"]
[BlackElo "2600"]
[TimeControl "180+1"]
[EndTime "8:41:54 PST"]
[Termination "starworld123 won by checkmate"]

1. Nf3 {[%clk 0:02:58.5]} 1... d5 {[%clk 0:02:59.9]} 2. e3 {[%clk 0:02:57.8]}
2... e6 {[%clk 0:03:00]} 3. c4 {[%clk 0:02:57.1]} 3... c6 {[%clk 0:02:59.7]} 4.
b3 {[%clk 0:02:56.9]} 4... f5 {[%clk 0:02:59.3]} 5. Bb2 {[%clk 0:02:57.1]} 5...
Nf6 {[%clk 0:02:59.3]} 6. Be2 {[%clk 0:02:57]} 6... Be7 {[%clk 0:02:59.2]} 7.
O-O {[%clk 0:02:54.8]} 7... O-O {[%clk 0:02:59.2]} 8. d3 {[%clk 0:02:48]} 8...
Nbd7 {[%clk 0:02:58.9]} 9. Nd4 {[%clk 0:02:45.5]} 9... Nb6 {[%clk 0:02:50.9]}
10. f4 {[%clk 0:02:45.9]} 10... Bd7 {[%clk 0:02:39.8]} 11. a3 {[%clk 0:02:45]}
11... a5 {[%clk 0:02:38.5]} 12. Nd2 {[%clk 0:02:45.6]} 12... c5 {[%clk
0:02:33.9]} 13. N4f3 {[%clk 0:02:44.4]} 13... Bc6 {[%clk 0:02:33.1]} 14. Ne5
{[%clk 0:02:38.5]} 14... Nfd7 {[%clk 0:02:24.2]} 15. Ndf3 {[%clk 0:02:29.7]}
15... Nxe5 {[%clk 0:02:19.5]} 16. Nxe5 {[%clk 0:02:30.6]} 16... Nd7 {[%clk
0:02:19.7]} 17. Nxc6 {[%clk 0:01:54.5]} 17... bxc6 {[%clk 0:02:19.5]} 18. Qc2
{[%clk 0:01:55]} 18... Bf6 {[%clk 0:02:16.7]} 19. d4 {[%clk 0:01:53.4]} 19...
cxd4 {[%clk 0:02:16.1]} 20. exd4 {[%clk 0:01:54.3]} 20... Qb6 {[%clk 0:02:12.6]}
21. c5 {[%clk 0:01:52.3]} 21... Qb7 {[%clk 0:02:08.4]} 22. Bc3 {[%clk
0:01:52.1]} 22... Rfb8 {[%clk 0:01:59.8]} 23. b4 {[%clk 0:01:49.8]} 23... Qa7
{[%clk 0:01:45.6]} 24. Rfb1 {[%clk 0:01:40.5]} 24... a4 {[%clk 0:01:30.7]} 25.
Kh1 {[%clk 0:01:35.4]} 25... Bd8 {[%clk 0:01:26.3]} 26. b5 {[%clk 0:01:32.6]}
26... cxb5 {[%clk 0:01:23]} 27. Bxb5 {[%clk 0:01:33.5]} 27... Nf6 {[%clk
0:01:22.9]} 28. Bc6 {[%clk 0:01:33.7]} 28... Rxb1+ {[%clk 0:01:22.7]} 29. Rxb1
{[%clk 0:01:34.6]} 29... Rb8 {[%clk 0:01:22.3]} 30. Rxb8 {[%clk 0:01:31.8]}
30... Qxb8 {[%clk 0:01:22.1]} 31. Bxa4 {[%clk 0:01:32]} 31... Ne4 {[%clk
0:01:21.3]} 32. g3 {[%clk 0:01:21.1]} 32... Qa7 {[%clk 0:01:02.9]} 33. Bb2
{[%clk 0:01:06.6]} 33... Qa5 {[%clk 0:01:02]} 34. Kg2 {[%clk 0:00:50.8]} 34...
g5 {[%clk 0:00:34.8]} 35. fxg5 {[%clk 0:00:51]} 35... Nxg5 {[%clk 0:00:24.7]}
36. Bc3 {[%clk 0:00:46.1]} 36... Qa6 {[%clk 0:00:22.1]} 37. c6 {[%clk
0:00:41.7]} 37... Ne4 {[%clk 0:00:20.7]} 38. Bb4 {[%clk 0:00:36.8]} 38... Bc7
{[%clk 0:00:19.6]} 39. Be7 {[%clk 0:00:30.8]} 39... f4 {[%clk 0:00:18.9]} 40.
gxf4 {[%clk 0:00:30.5]} 40... Bxf4 {[%clk 0:00:19]} 41. Bd8 {[%clk 0:00:23.9]}
41... Qa7 {[%clk 0:00:11.8]} 42. c7 {[%clk 0:00:23]} 42... Bxc7 {[%clk
0:00:11.7]} 43. Bxc7 {[%clk 0:00:23.5]} 43... Qxd4 {[%clk 0:00:11.8]} 44. Bg3
{[%clk 0:00:17.8]} 44... h5 {[%clk 0:00:09]} 45. Bd7 {[%clk 0:00:15.7]} 45...
Nc5 {[%clk 0:00:05.5]} 46. Qg6+ {[%clk 0:00:12.5]} 46... Kf8 {[%clk 0:00:05]}
47. Bd6# {[%clk 0:00:12.8]} 1-0

[Event "Early-Titled-Tuesday-Blitz-January-16-2024"]
[Site "Chess.com"]
[Date "2024.01.16"]
[Round "4"]
[White "karinachess1"]
[Black "scarabee43"]
[Result "1-0"]
[WhiteElo "2610"]
[BlackElo "2804"]
[TimeControl "180+1"]
[EndTime "8:41:55 PST"]
[Termination "karinachess1 won by resignation"]

1. d4 {[%clk 0:03:00.9]} 1... Nf6 {[%clk 0:02:59.7]} 2. c4 {[%clk 0:03:01]} 2...
e6 {[%clk 0:02:59.7]} 3. Nc3 {[%clk 0:03:01.2]} 3... d5 {[%clk 0:02:59.5]} 4.
cxd5 {[%clk 0:03:00.7]} 4... exd5 {[%clk 0:03:00.2]} 5. Bg5 {[%clk 0:03:01.1]}
5... Be7 {[%clk 0:03:00.9]} 6. e3 {[%clk 0:03:01.5]} 6... O-O {[%clk 0:03:01.1]}
7. Bd3 {[%clk 0:03:01.8]} 7... c6 {[%clk 0:02:59.4]} 8. Qc2 {[%clk 0:03:01.7]}
8... h6 {[%clk 0:02:58.6]} 9. Bh4 {[%clk 0:03:01.9]} 9... Re8 {[%clk 0:02:57.2]}
10. Nf3 {[%clk 0:03:02.1]} 10... Nbd7 {[%clk 0:02:57.7]} 11. O-O {[%clk
0:03:01.7]} 11... a5 {[%clk 0:02:51.8]} 12. a3 {[%clk 0:02:55.5]} 12... Nf8
{[%clk 0:02:40.8]} 13. Rab1 {[%clk 0:02:51.4]} 13... Be6 {[%clk 0:02:29.9]} 14.
Na4 {[%clk 0:02:50.3]} 14... N6d7 {[%clk 0:02:26.6]} 15. Bxe7 {[%clk 0:02:43.2]}
15... Qxe7 {[%clk 0:02:26.4]} 16. b4 {[%clk 0:02:43.2]} 16... axb4 {[%clk
0:02:25.8]} 17. axb4 {[%clk 0:02:44.1]} 17... b5 {[%clk 0:02:21.8]} 18. Nc5
{[%clk 0:02:42.4]} 18... Nb6 {[%clk 0:02:22.4]} 19. Ne5 {[%clk 0:02:38.7]} 19...
Nc4 {[%clk 0:01:58.5]} 20. Nxc6 {[%clk 0:02:17.4]} 20... Qg5 {[%clk 0:01:51.8]}
21. Bxc4 {[%clk 0:02:08.2]} 21... dxc4 {[%clk 0:01:47.4]} 22. Nxe6 {[%clk
0:02:00.9]} 22... Rxe6 {[%clk 0:01:46.7]} 23. Ne5 {[%clk 0:02:01.1]} 23... Rea6
{[%clk 0:01:47.3]} 24. Qe4 {[%clk 0:01:50.2]} 24... Ra2 {[%clk 0:01:37.4]} 25.
Qd5 {[%clk 0:01:48.1]} 25... Rb8 {[%clk 0:01:17.6]} 26. Qxf7+ {[%clk 0:01:44.2]}
26... Kh7 {[%clk 0:01:17.9]} 27. g3 {[%clk 0:01:26.5]} 27... Ng6 {[%clk
0:01:01.7]} 28. Nxg6 {[%clk 0:00:55.3]} 28... Qxg6 {[%clk 0:01:00.8]} 29. Qd5
{[%clk 0:00:41.3]} 29... Rf8 {[%clk 0:00:46.5]} 30. Rbc1 {[%clk 0:00:37.5]}
30... Rf5 {[%clk 0:00:45.9]} 31. Qe4 {[%clk 0:00:34.1]} 31... Rb2 {[%clk
0:00:44.1]} 32. d5 {[%clk 0:00:31.8]} 32... Rxb4 {[%clk 0:00:42.6]} 33. d6
{[%clk 0:00:26.1]} 33... Rf7 {[%clk 0:00:39.1]} 34. Qd4 {[%clk 0:00:20.8]} 34...
Rd7 {[%clk 0:00:35.6]} 35. Rcd1 {[%clk 0:00:20.9]} 35... Rb3 {[%clk 0:00:34.9]}
36. e4 {[%clk 0:00:20.4]} 36... Qe6 {[%clk 0:00:33.3]} 37. e5 {[%clk 0:00:20.2]}
37... Ra3 {[%clk 0:00:21.1]} 38. Qe4+ {[%clk 0:00:20]} 38... g6 {[%clk
0:00:21.1]} 39. Qd5 {[%clk 0:00:19.9]} 39... Qxd5 {[%clk 0:00:19.4]} 40. Rxd5
{[%clk 0:00:20.8]} 40... b4 {[%clk 0:00:10.8]} 41. e6 {[%clk 0:00:21.2]} 41...
Rd8 {[%clk 0:00:10.3]} 42. e7 {[%clk 0:00:21.6]} 42... Raa8 {[%clk 0:00:05.2]}
43. exd8=Q {[%clk 0:00:21.2]} 43... Rxd8 {[%clk 0:00:05.9]} 44. Rd4 {[%clk
0:00:20]} 44... c3 {[%clk 0:00:06.1]} 45. Rxb4 {[%clk 0:00:19.9]} 45... Rxd6
{[%clk 0:00:06.5]} 46. Rc4 {[%clk 0:00:20.5]} 46... Rd3 {[%clk 0:00:06.8]} 47.
Rc1 {[%clk 0:00:20.8]} 47... h5 {[%clk 0:00:07.5]} 48. R4xc3 {[%clk 0:00:21.3]}
48... Rd2 {[%clk 0:00:07.9]} 49. h4 {[%clk 0:00:21.7]} 49... Kh6 {[%clk
0:00:07.6]} 50. Kg2 {[%clk 0:00:22.3]} 50... Rd6 {[%clk 0:00:07.6]} 51. Rc6
{[%clk 0:00:21.8]} 51... Rd4 {[%clk 0:00:07.9]} 52. R1c5 {[%clk 0:00:21.9]}
52... Rg4 {[%clk 0:00:07.4]} 53. Rg5 {[%clk 0:00:22.1]} 53... Rxg5 {[%clk
0:00:07.7]} 54. hxg5+ {[%clk 0:00:23]} 54... Kxg5 {[%clk 0:00:08.4]} 55. Kh3
{[%clk 0:00:23.2]} 55... Kf5 {[%clk 0:00:08.1]} 56. f4 {[%clk 0:00:22.8]} 1-0